fUST/lending_fUST_20250221
["ID","MTS","AMOUNT","RATE_DAILY","PERIOD"]
[353880233,1740109839891,-1398.49,0.00013698,2]
[353880235,1740109839901,-500.0,0.00013698,2]
[353880237,1740109839910,-500.0,0.00013698,2]
[353880239,1740109839919,-500.0,0.00013698,2]
[353880241,1740109839932,-500.0,0.00013698,2]
[353880243,1740109839941,-1531.0,0.00013698,2]
[353880245,1740109839950,-3441.76,0.00013698,2]
[353880247,1740109839961,-500.0,0.00013698,2]
[353880249,1740109839970,-1103.24,0.00013698,2]
[353880251,1740109839980,-500.0,0.00013698,2]
[353880253,1740109839989,-381.46592178,0.00013698,2]
[353880255,1740109839998,-531.89,0.00013698,2]
[353880258,1740109840008,-513.46125984,0.00013698,2]
[353880261,1740109840018,-500.0,0.00013698,2]
[353880263,1740109840027,-242.897904,0.00013699,2]
[353880266,1740109840036,-1120.792848,0.00013699,2]
[353880268,1740109840044,-3000.0,0.00013763,2]
[353880270,1740109840054,-500.0,0.00013779,2]
[353880272,1740109840063,-217.67000977,0.00013779,2]
[353880274,1740109840072,-500.0,0.00013779,2]
[353880276,1740109840081,-500.0,0.00013779,2]
[353880278,1740109840091,-500.0,0.00013779,2]
[353880280,1740109840100,-500.0,0.00013779,2]
[353880282,1740109840109,-500.0,0.00013779,2]
[353880284,1740109840119,-500.0,0.00013779,2]
[353880286,1740109840128,-500.0,0.00013779,2]
[353880288,1740109840137,-500.0,0.00013779,2]
[353880290,1740109840146,-500.0,0.00013779,2]
[353880292,1740109840159,-500.0,0.00013779,2]
[353880294,1740109840168,-500.0,0.00013779,2]
[353880296,1740109840177,-500.0,0.00013779,2]
[353880298,1740109840187,-500.0,0.00013779,2]
[353880300,1740109840196,-500.0,0.00013779,2]
[353880302,1740109840206,-500.0,0.00013779,2]
[353880304,1740109840215,-500.0,0.00013779,2]
[353880306,1740109840224,-500.0,0.00013779,2]
[353880308,1740109840234,-500.0,0.00013779,2]
[353880310,1740109840243,-500.0,0.00013779,2]
[353880312,1740109840252,-500.0,0.00013779,2]
[353880314,1740109840261,-500.0,0.00013779,2]
[353880316,1740109840271,-500.0,0.00013779,2]
[353880318,1740109840280,-208.7989216,0.00013779,2]
[353880320,1740109840289,-500.0,0.00013779,2]
[353880322,1740109840299,-500.0,0.00013779,2]
[353880324,1740109840309,-500.0,0.00013779,2]
[353880327,1740109840319,-327.85777433,0.0001378,2]
[353880328,1740109840330,-500.0,0.0001378,2]
[353880331,1740109840340,-500.0,0.0001378,2]
[353880333,1740109840349,-500.0,0.0001378,2]
[353880335,1740109840359,-500.0,0.0001378,2]
[353880337,1740109840368,-500.0,0.0001378,2]
[353880339,1740109840378,-500.0,0.0001378,2]
[353880341,1740109840387,-500.0,0.0001378,2]
[353880343,1740109840396,-500.0,0.0001378,2]
[353880345,1740109840406,-500.0,0.0001378,2]
[353880347,1740109840415,-1148.74,0.0001378,2]
[353880349,1740109840425,-500.0,0.0001378,2]
[353880351,1740109840433,-500.0,0.0001378,2]
[353880353,1740109840443,-500.0,0.0001378,2]
[353880355,1740109840453,-500.0,0.0001378,2]
[353880357,1740109840463,-500.0,0.0001378,2]
[353880359,1740109840473,-500.0,0.0001378,2]
[353880361,1740109840482,-500.0,0.0001378,2]
[353880363,1740109840492,-500.0,0.0001378,2]
[353880365,1740109840501,-537.35,0.0001378,2]
[353880367,1740109840511,-500.0,0.0001378,2]
[353880369,1740109840520,-500.0,0.0001378,2]
[353880371,1740109840530,-500.0,0.0001378,2]
[353880373,1740109840539,-651.44,0.0001378,2]
[353880375,1740109840548,-500.0,0.0001378,2]
[353880378,1740109840566,-500.0,0.0001378,2]
[353880380,1740109840577,-500.0,0.0001378,2]
[353880382,1740109840588,-500.0,0.0001378,2]
[353880384,1740109840597,-500.0,0.0001378,2]
[353880386,1740109840607,-500.0,0.0001378,2]
[353880389,1740109840617,-704.46,0.0001378,2]
[353880391,1740109840627,-500.0,0.0001378,2]
[353880393,1740109840637,-712.9,0.0001378,2]
[353880395,1740109840646,-500.0,0.0001378,2]
[353880397,1740109840657,-500.0,0.0001378,2]
[353880399,1740109840666,-500.0,0.0001378,2]
[353880401,1740109840676,-505.49796428,0.0001378,2]
[353880403,1740109840686,-500.0,0.0001378,2]
[353880405,1740109840696,-517.17,0.0001378,2]
[353880407,1740109840706,-241.48260556,0.0001378,2]
[353880409,1740109840715,-500.0,0.0001378,2]
[353880411,1740109840725,-500.0,0.0001378,2]
[353880413,1740109840735,-500.0,0.0001378,2]
[353880415,1740109840745,-500.0,0.0001378,2]
[353880417,1740109840754,-500.0,0.0001378,2]
[353880420,1740109840764,-500.0,0.0001378,2]
[353880422,1740109840773,-500.0,0.0001378,2]
[353880424,1740109840784,-500.0,0.0001378,2]
[353880426,1740109840793,-500.0,0.0001378,2]
[353880428,1740109840803,-500.0,0.0001378,2]
[353880430,1740109840813,-500.0,0.0001378,2]
[353880432,1740109840822,-11112.07,0.0001378,2]
[353880434,1740109840832,-500.0,0.0001378,2]
[353880436,1740109840842,-1373.5,0.0001378,2]
[353880438,1740109840851,-500.0,0.0001378,2]
[353880440,1740109840860,-500.0,0.0001378,2]
[353880442,1740109840870,-4992.75,0.0001378,2]
[353880444,1740109840879,-1556.6,0.0001378,2]
[353880446,1740109840889,-500.0,0.0001378,2]
[353880448,1740109840900,-500.0,0.0001378,2]
[353880451,1740109840910,-1532.86,0.0001378,2]
[353880453,1740109840920,-2223.79,0.0001378,2]
[353880455,1740109840932,-897.56,0.0001378,2]
[353880457,1740109840941,-708.34,0.0001378,2]
[353880459,1740109840950,-500.0,0.0001378,2]
[353880461,1740109840959,-797.85,0.0001378,2]
[353880463,1740109840970,-500.0,0.0001378,2]
[353880465,1740109840979,-22363.22,0.0001378,2]
[353880467,1740109840988,-500.0,0.0001378,2]
[353880469,1740109840998,-1420.31,0.0001378,2]
[353880471,1740109841010,-1123.66,0.0001378,2]
[353880473,1740109841021,-712.91,0.0001378,2]
[353880475,1740109841031,-866.97,0.0001378,2]
[353880477,1740109841040,-500.0,0.0001378,2]
[353880479,1740109841049,-9276.3,0.0001378,2]
[353880481,1740109841059,-1970.16,0.0001378,2]
[353880483,1740109841068,-830.62,0.0001378,2]
[353880485,1740109841077,-3887.39,0.0001378,2]
[353880487,1740109841087,-534.15,0.0001378,2]
[353880489,1740109841096,-686.65,0.0001378,2]
[353880491,1740109841105,-2121.74,0.0001378,2]
[353880493,1740109841115,-500.0,0.0001378,2]
[353880495,1740109841125,-2240.4,0.0001378,2]
[353880497,1740109841135,-1177.27,0.0001378,2]
[353880499,1740109841145,-500.0,0.0001378,2]
[353880501,1740109841155,-500.0,0.0001378,2]
[353880503,1740109841165,-760.44,0.0001378,2]
[353880505,1740109841175,-500.0,0.0001378,2]
[353880507,1740109841184,-527.18,0.0001378,2]
[353880510,1740109841194,-629.01,0.0001378,2]
[353880512,1740109841203,-500.0,0.0001378,2]
[353880514,1740109841213,-261.77239442,0.0001378,2]
[353880516,1740109841223,-1212.7,0.0001378,2]
[353880518,1740109841232,-1227.1,0.0001378,2]
[353880520,1740109841242,-1398.49,0.0001378,2]
[353880522,1740109841252,-500.0,0.0001378,2]
[353880524,1740109841261,-500.0,0.0001378,2]
[353880526,1740109841271,-500.0,0.0001378,2]
[353880528,1740109841280,-1531.0,0.0001378,2]
[353880530,1740109841290,-3441.76,0.0001378,2]
[353880532,1740109841299,-500.0,0.0001378,2]
[353880534,1740109841308,-1103.24,0.0001378,2]
[353880536,1740109841318,-500.0,0.0001378,2]
[353880538,1740109841327,-531.89,0.0001378,2]
[353880540,1740109841337,-5380.71077561,0.00013845,2]
[353880542,1740109841346,-330.96217767,0.00013863,2]
[353880544,1740109841356,-500.0,0.00013863,2]
[353880546,1740109841365,-500.0,0.00013863,2]
[353880548,1740109841375,-500.0,0.00013863,2]
[353880550,1740109841385,-500.0,0.00013863,2]
[353880552,1740109841394,-500.0,0.00013863,2]
[353880554,1740109841403,-500.0,0.00013863,2]
[353880556,1740109841413,-500.0,0.00013863,2]
[353880558,1740109841422,-500.0,0.00013863,2]
[353880560,1740109841431,-1148.74,0.00013863,2]
[353880562,1740109841441,-500.0,0.00013863,2]
[353880564,1740109841450,-500.0,0.00013863,2]
[353880566,1740109841460,-500.0,0.00013863,2]
[353880568,1740109841470,-500.0,0.00013863,2]
[353880570,1740109841479,-500.0,0.00013863,2]
[353880572,1740109841489,-500.0,0.00013863,2]
[353880574,1740109841499,-500.0,0.00013863,2]
[353880576,1740109841508,-500.0,0.00013863,2]
[353880578,1740109841517,-537.35,0.00013863,2]
[353880580,1740109841527,-500.0,0.00013863,2]
[353880582,1740109841537,-500.0,0.00013863,2]
[353880584,1740109841547,-500.0,0.00013863,2]
[353880586,1740109841556,-651.44,0.00013863,2]
[353880587,1740109841566,-500.0,0.00013863,2]
[353880588,1740109841575,-500.0,0.00013863,2]
[353880589,1740109841585,-500.0,0.00013863,2]
[353880590,1740109841594,-500.0,0.00013863,2]
[353880591,1740109841604,-500.0,0.00013863,2]
[353880592,1740109841614,-500.0,0.00013863,2]
[353880593,1740109841623,-704.46,0.00013863,2]
[353880594,1740109841633,-500.0,0.00013863,2]
[353880595,1740109841643,-712.9,0.00013863,2]
[353880596,1740109841652,-500.0,0.00013863,2]
[353880597,1740109841662,-500.0,0.00013863,2]
[353880598,1740109841671,-500.0,0.00013863,2]
[353880599,1740109841680,-268.1765314,0.00013863,2]
[353880601,1740109841690,-517.17,0.00013863,2]
[353880603,1740109841699,-500.0,0.00013863,2]
[353880605,1740109841708,-500.0,0.00013863,2]
[353880607,1740109841719,-507.34246424,0.00013863,2]
[353880609,1740109841728,-500.0,0.00013863,2]
[353880611,1740109841737,-500.0,0.00013863,2]
[353880613,1740109841746,-500.0,0.00013863,2]
[353880615,1740109841756,-500.0,0.00013863,2]
[353880617,1740109841765,-500.0,0.00013863,2]
[353880619,1740109841774,-500.0,0.00013863,2]
[353880621,1740109841784,-11112.07,0.00013863,2]
[353880623,1740109841794,-500.0,0.00013863,2]
[353880625,1740109841803,-1373.5,0.00013863,2]
[353880627,1740109841813,-500.0,0.00013863,2]
[353880629,1740109841822,-4992.75,0.00013863,2]
[353880631,1740109841832,-1556.6,0.00013863,2]
[353880633,1740109841841,-500.0,0.00013863,2]
[353880635,1740109841851,-500.0,0.00013863,2]
[353880637,1740109841860,-1532.86,0.00013863,2]
[353880639,1740109841870,-2223.79,0.00013863,2]
[353880641,1740109841880,-897.56,0.00013863,2]
[353880643,1740109841890,-708.34,0.00013863,2]
[353880645,1740109841899,-500.0,0.00013863,2]
[353880647,1740109841909,-797.85,0.00013863,2]
[353880649,1740109841918,-500.0,0.00013863,2]
[353880651,1740109841929,-22363.22,0.00013863,2]
[353880654,1740109841942,-500.0,0.00013863,2]
[353880656,1740109841951,-1420.31,0.00013863,2]
[353880658,1740109841961,-1123.66,0.00013863,2]
[353880660,1740109841970,-712.91,0.00013863,2]
[353880662,1740109841981,-866.97,0.00013863,2]
[353880664,1740109841991,-500.0,0.00013863,2]
[353880666,1740109842000,-9276.3,0.00013863,2]
[353880668,1740109842010,-1970.16,0.00013863,2]
[353880670,1740109842020,-830.62,0.00013863,2]
[353880672,1740109842029,-3887.39,0.00013863,2]
[353880674,1740109842039,-534.15,0.00013863,2]
[353880676,1740109842049,-686.65,0.00013863,2]
[353880678,1740109842058,-2121.74,0.00013863,2]
[353880680,1740109842068,-500.0,0.00013863,2]
[353880682,1740109842077,-2240.4,0.00013863,2]
[353880684,1740109842087,-1177.27,0.00013863,2]
[353880686,1740109842097,-500.0,0.00013863,2]
[353880688,1740109842107,-500.0,0.00013863,2]
[353880690,1740109842116,-760.44,0.00013863,2]
[353880692,1740109842126,-500.0,0.00013863,2]
[353880694,1740109842135,-527.18,0.00013863,2]
[353880696,1740109842145,-629.01,0.00013863,2]
[353880698,1740109842155,-500.0,0.00013863,2]
[353880700,1740109842164,-1212.7,0.00013863,2]
[353880702,1740109842174,-1227.1,0.00013863,2]
[353880704,1740109842183,-1398.49,0.00013863,2]
[353880706,1740109842192,-500.0,0.00013863,2]
[353880708,1740109842202,-500.0,0.00013863,2]
[353880710,1740109842212,-500.0,0.00013863,2]
[353880712,1740109842222,-1531.0,0.00013863,2]
[353880714,1740109842231,-3441.76,0.00013863,2]
[353880716,1740109842241,-500.0,0.00013863,2]
[353880718,1740109842252,-1103.24,0.00013863,2]
[353880720,1740109842262,-500.0,0.00013863,2]
[353880722,1740109842272,-531.89,0.00013863,2]
[353880725,1740109842283,-500.0,0.00013945,2]
[353880726,1740109842292,-500.0,0.00013945,2]
[353880741,1740109842419,-500.0,0.00013945,2]
[353880743,1740109842429,-500.0,0.00013945,2]
[353880745,1740109842438,-500.0,0.00013945,2]
[353880747,1740109842448,-500.0,0.00013945,2]
[353880749,1740109842457,-500.0,0.00013945,2]
[353880751,1740109842467,-500.0,0.00013945,2]
[353880753,1740109842477,-1148.74,0.00013945,2]
[353880755,1740109842486,-500.0,0.00013945,2]
[353880757,1740109842496,-500.0,0.00013945,2]
[353880759,1740109842505,-500.0,0.00013945,2]
[353880761,1740109842514,-525.3692012,0.00013945,2]
[353880763,1740109842524,-500.0,0.00013945,2]
[353880765,1740109842535,-500.0,0.00013945,2]
[353880767,1740109842544,-500.0,0.00013945,2]
[353880769,1740109842553,-500.0,0.00013945,2]
[353880771,1740109842563,-537.35,0.00013945,2]
[353880773,1740109842572,-500.0,0.00013945,2]
[353880775,1740109842582,-500.0,0.00013945,2]
[353880777,1740109842591,-625.66626844,0.00013945,2]
[353880779,1740109842600,-651.44,0.00013945,2]
[353880781,1740109842610,-357.65815289,0.00013945,2]
[353880783,1740109842620,-500.0,0.00013945,2]
[353880785,1740109842630,-500.0,0.00013945,2]
[353880787,1740109842639,-500.0,0.00013945,2]
[353880789,1740109842648,-500.0,0.00013945,2]
[353880791,1740109842657,-500.0,0.00013945,2]
[353880793,1740109842667,-704.46,0.00013945,2]
[353880795,1740109842676,-500.0,0.00013945,2]
[353880797,1740109842685,-712.9,0.00013945,2]
[353880799,1740109842694,-500.0,0.00013945,2]
[353880801,1740109842704,-500.0,0.00013945,2]
[353880803,1740109842713,-500.0,0.00013945,2]
[353880805,1740109842722,-517.17,0.00013945,2]
[353880807,1740109842732,-500.0,0.00013945,2]
[353880809,1740109842741,-500.0,0.00013945,2]
[353880811,1740109842751,-500.0,0.00013945,2]
[353880813,1740109842761,-500.0,0.00013945,2]
[353880815,1740109842770,-500.0,0.00013945,2]
[353880817,1740109842779,-500.0,0.00013945,2]
[353880819,1740109842789,-500.0,0.00013945,2]
[353880821,1740109842799,-500.0,0.00013945,2]
[353880823,1740109842808,-11112.07,0.00013945,2]
[353880825,1740109842817,-500.0,0.00013945,2]
[353880827,1740109842826,-1373.5,0.00013945,2]
[353880829,1740109842835,-500.0,0.00013945,2]
[353880831,1740109842844,-4992.75,0.00013945,2]
[353880833,1740109842854,-1556.6,0.00013945,2]
[353880835,1740109842863,-500.0,0.00013945,2]
[353880837,1740109842872,-500.0,0.00013945,2]
[353880839,1740109842881,-1532.86,0.00013945,2]
[353880841,1740109842891,-2223.79,0.00013945,2]
[353880844,1740109842900,-897.56,0.00013945,2]
[353880845,1740109842909,-708.34,0.00013945,2]
[353880847,1740109842922,-500.0,0.00013945,2]
[353880850,1740109842934,-797.85,0.00013945,2]
[353880854,1740109842944,-500.0,0.00013945,2]
[353880856,1740109842953,-22363.22,0.00013945,2]
[353880857,1740109842963,-500.0,0.00013945,2]
[353880859,1740109842973,-1420.31,0.00013945,2]
[353880861,1740109842982,-1123.66,0.00013945,2]
[353880863,1740109842992,-712.91,0.00013945,2]
[353880865,1740109843001,-866.97,0.00013945,2]
[353880868,1740109843011,-500.0,0.00013945,2]
[353880870,1740109843021,-9276.3,0.00013945,2]
[353880872,1740109843030,-1970.16,0.00013945,2]
[353880876,1740109843040,-830.62,0.00013945,2]
[353880878,1740109843049,-3887.39,0.00013945,2]
[353880880,1740109843058,-534.15,0.00013945,2]
[353880882,1740109843067,-686.65,0.00013945,2]
[353880884,1740109843076,-2121.74,0.00013945,2]
[353880886,1740109843085,-500.0,0.00013945,2]
[353880888,1740109843096,-2240.4,0.00013945,2]
[353880890,1740109843105,-1177.27,0.00013945,2]
[353880893,1740109843114,-500.0,0.00013945,2]
[353880895,1740109843123,-500.0,0.00013945,2]
[353880897,1740109843132,-760.44,0.00013945,2]
[353880899,1740109843142,-500.0,0.00013945,2]
[353880901,1740109843152,-527.18,0.00013945,2]
[353880903,1740109843161,-629.01,0.00013945,2]
[353880905,1740109843170,-500.0,0.00013945,2]
[353880907,1740109843179,-1212.7,0.00013945,2]
[353880909,1740109843188,-1227.1,0.00013945,2]
[353880911,1740109843198,-1398.49,0.00013945,2]
[353880913,1740109843207,-500.0,0.00013945,2]
[353880915,1740109843216,-500.0,0.00013945,2]
[353880917,1740109843226,-500.0,0.00013945,2]
[353880919,1740109843234,-1531.0,0.00013945,2]
[353880921,1740109843243,-3441.76,0.00013945,2]
[353880923,1740109843253,-500.0,0.00013945,2]
[353880925,1740109843262,-1103.24,0.00013945,2]
[353880927,1740109843271,-500.0,0.00013945,2]
[353880929,1740109843280,-531.89,0.00013945,2]
[353880931,1740109843289,-500.0,0.00014027,2]
[353880933,1740109843298,-500.0,0.00014027,2]
[353880935,1740109843307,-500.0,0.00014027,2]
[353880937,1740109843316,-500.0,0.00014027,2]
[353880939,1740109843326,-500.0,0.00014027,2]
[353880941,1740109843335,-500.0,0.00014027,2]
[353880943,1740109843344,-1148.74,0.00014027,2]
[353880945,1740109843353,-500.0,0.00014027,2]
[353880947,1740109843362,-500.0,0.00014027,2]
[353880949,1740109843371,-500.0,0.00014027,2]
[353880951,1740109843381,-500.0,0.00014027,2]
[353880953,1740109843390,-500.0,0.00014027,2]
[353880955,1740109843399,-500.0,0.00014027,2]
[353880957,1740109843408,-500.0,0.00014027,2]
[353880959,1740109843417,-537.35,0.00014027,2]
[353880961,1740109843426,-500.0,0.00014027,2]
[353880963,1740109843435,-500.0,0.00014027,2]
[353880965,1740109843444,-651.44,0.00014027,2]
[353880967,1740109843453,-500.0,0.00014027,2]
[353880969,1740109843462,-500.0,0.00014027,2]
[353880971,1740109843473,-500.0,0.00014027,2]
[353880973,1740109843482,-500.0,0.00014027,2]
[353880975,1740109843491,-500.0,0.00014027,2]
[353880977,1740109843499,-704.46,0.00014027,2]
[353880979,1740109843508,-500.0,0.00014027,2]
[353880981,1740109843518,-712.9,0.00014027,2]
[353880983,1740109843527,-505.80932262,0.00014027,2]
[353880985,1740109843536,-500.0,0.00014027,2]
[353880987,1740109843545,-500.0,0.00014027,2]
[353880988,1740109843554,-517.17,0.00014027,2]
[353880990,1740109843563,-500.0,0.00014027,2]
[353880992,1740109843572,-500.0,0.00014027,2]
[353880994,1740109843582,-500.0,0.00014027,2]
[353880997,1740109843591,-500.0,0.00014027,2]
[353881000,1740109843600,-500.0,0.00014027,2]
[353881003,1740109843609,-500.0,0.00014027,2]
[353881006,1740109843618,-500.0,0.00014027,2]
[353881009,1740109843627,-500.0,0.00014027,2]
[353881012,1740109843637,-11112.07,0.00014027,2]
[353881015,1740109843646,-500.0,0.00014027,2]
[353881017,1740109843655,-1373.5,0.00014027,2]
[353881018,1740109843664,-500.0,0.00014027,2]
[353881021,1740109843673,-4992.75,0.00014027,2]
[353881023,1740109843683,-1556.6,0.00014027,2]
[353881025,1740109843692,-500.0,0.00014027,2]
[353881027,1740109843701,-500.0,0.00014027,2]
[353881029,1740109843710,-1532.86,0.00014027,2]
[353881031,1740109843719,-2223.79,0.00014027,2]
[353881033,1740109843729,-897.56,0.00014027,2]
[353881035,1740109843738,-708.34,0.00014027,2]
[353881037,1740109843748,-500.0,0.00014027,2]
[353881039,1740109843757,-797.85,0.00014027,2]
[353881041,1740109843766,-500.0,0.00014027,2]
[353881043,1740109843775,-22363.22,0.00014027,2]
[353881045,1740109843784,-608.411473,0.00014027,2]
[353881047,1740109843794,-1420.31,0.00014027,2]
[353881049,1740109843803,-1123.66,0.00014027,2]
[353881051,1740109843812,-712.91,0.00014027,2]
[353881053,1740109843821,-866.97,0.00014027,2]
[353881055,1740109843831,-500.0,0.00014027,2]
[353881057,1740109843840,-9276.3,0.00014027,2]
[353881059,1740109843849,-1970.16,0.00014027,2]
[353881061,1740109843858,-830.62,0.00014027,2]
[353881063,1740109843867,-3887.39,0.00014027,2]
[353881065,1740109843876,-534.15,0.00014027,2]
[353881067,1740109843885,-686.65,0.00014027,2]
[353881069,1740109843894,-2121.74,0.00014027,2]
[353881071,1740109843903,-500.0,0.00014027,2]
[353881073,1740109843912,-2240.4,0.00014027,2]
[353881075,1740109843921,-1177.27,0.00014027,2]
[353881077,1740109843933,-500.0,0.00014027,2]
[353881079,1740109843942,-500.0,0.00014027,2]
[353881081,1740109843951,-760.44,0.00014027,2]
[353881083,1740109843960,-500.0,0.00014027,2]
[353881085,1740109843969,-527.18,0.00014027,2]
[353881087,1740109843980,-629.01,0.00014027,2]
[353881089,1740109843989,-500.0,0.00014027,2]
[353881091,1740109843998,-1212.7,0.00014027,2]
[353881093,1740109844008,-1227.1,0.00014027,2]
[353881095,1740109844017,-1398.49,0.00014027,2]
[353881097,1740109844026,-500.0,0.00014027,2]
[353881099,1740109844036,-500.0,0.00014027,2]
[353881101,1740109844045,-500.0,0.00014027,2]
[353881103,1740109844054,-1531.0,0.00014027,2]
[353881105,1740109844063,-3441.76,0.00014027,2]
[353881107,1740109844072,-500.0,0.00014027,2]
[353881109,1740109844081,-1103.24,0.00014027,2]
[353881111,1740109844090,-500.0,0.00014027,2]
[353881113,1740109844100,-531.89,0.00014027,2]
[353881115,1740109844109,-500.2151841,0.00014084,2]
[353881117,1740109844118,-3000.0,0.0001409,2]
[353881119,1740109844128,-160.0,0.00014093,3]
[353881121,1740109844137,-500.0,0.00014109,2]
[353881123,1740109844146,-500.0,0.00014109,2]
[353881125,1740109844155,-500.0,0.00014109,2]
[353881127,1740109844165,-500.0,0.00014109,2]
[353881129,1740109844174,-1148.74,0.00014109,2]
[353881131,1740109844183,-500.0,0.00014109,2]
[353881133,1740109844193,-500.0,0.00014109,2]
[353881135,1740109844202,-500.0,0.00014109,2]
[353881137,1740109844211,-500.0,0.00014109,2]
[353881139,1740109844221,-500.0,0.00014109,2]
[353881141,1740109844230,-487.08411756,0.00014109,2]
[353881143,1740109844239,-500.0,0.00014109,2]
[353881145,1740109844248,-537.35,0.00014109,2]
[353881147,1740109844257,-500.0,0.00014109,2]
[353881149,1740109844266,-500.0,0.00014109,2]
[353881151,1740109844276,-651.44,0.00014109,2]
[353881153,1740109844286,-500.0,0.00014109,2]
[353881155,1740109844296,-500.0,0.00014109,2]
[353881157,1740109844305,-500.0,0.00014109,2]
[353881159,1740109844314,-500.0,0.00014109,2]
[353881161,1740109844323,-500.0,0.00014109,2]
[353881163,1740109844333,-704.46,0.00014109,2]
[353881165,1740109844342,-500.0,0.00014109,2]
[353881167,1740109844351,-712.9,0.00014109,2]
[353881169,1740109844360,-500.0,0.00014109,2]
[353881171,1740109844369,-500.0,0.00014109,2]
[353881173,1740109844379,-517.17,0.00014109,2]
[353881175,1740109844388,-500.0,0.00014109,2]
[353881177,1740109844397,-500.0,0.00014109,2]
[353881179,1740109844406,-500.0,0.00014109,2]
[353881181,1740109844415,-500.0,0.00014109,2]
[353881183,1740109844424,-500.0,0.00014109,2]
[353881185,1740109844434,-500.0,0.00014109,2]
[353881187,1740109844444,-500.0,0.00014109,2]
[353881189,1740109844453,-500.0,0.00014109,2]
[353881191,1740109844462,-11112.07,0.00014109,2]
[353881193,1740109844472,-500.0,0.00014109,2]
[353881194,1740109844481,-1373.5,0.00014109,2]
[353881195,1740109844490,-500.0,0.00014109,2]
[353881196,1740109844499,-4992.75,0.00014109,2]
[353881197,1740109844509,-1556.6,0.00014109,2]
[353881198,1740109844518,-500.0,0.00014109,2]
[353881199,1740109844527,-500.0,0.00014109,2]
[353881200,1740109844536,-1532.86,0.00014109,2]
[353881201,1740109844545,-2223.79,0.00014109,2]
[353881202,1740109844554,-897.56,0.00014109,2]
[353881203,1740109844563,-708.34,0.00014109,2]
[353881204,1740109844572,-500.0,0.00014109,2]
[353881205,1740109844581,-797.85,0.00014109,2]
[353881206,1740109844590,-500.0,0.00014109,2]
[353881208,1740109844599,-22363.22,0.00014109,2]
[353881210,1740109844608,-1420.31,0.00014109,2]
[353881211,1740109844617,-1123.66,0.00014109,2]
[353881213,1740109844626,-712.91,0.00014109,2]
[353881216,1740109844636,-866.97,0.00014109,2]
[353881228,1740109844738,-500.0,0.00014109,2]
[353881230,1740109844747,-9276.3,0.00014109,2]
[353881232,1740109844757,-1970.16,0.00014109,2]
[353881234,1740109844766,-830.62,0.00014109,2]
[353881236,1740109844775,-3887.39,0.00014109,2]
[353881237,1740109844784,-534.15,0.00014109,2]
[353881240,1740109844793,-686.65,0.00014109,2]
[353881242,1740109844803,-2121.74,0.00014109,2]
[353881244,1740109844812,-500.0,0.00014109,2]
[353881246,1740109844821,-2240.4,0.00014109,2]
[353881248,1740109844830,-1177.27,0.00014109,2]
[353881249,1740109844839,-500.0,0.00014109,2]